Workbook

Sheet Costes de remodelación del baño
B1: Hoja de cálculo de los costes de reforma de la cocina
B2: NOTA: En las columnas de diferencia de la tabla se mostrará si el importe real superó la cantidad estimada. Los números en color rojo indican que se superó (negativo) y los números en color negro que no (positivo).
E3: Coste detallado (USD) | H3: Coste total (USD)
B4: Área | C4: Elementos | D4: Cantidad | E4: Estimado | F4: Real | G4: Diferencia | H4: Estimado | I4: Real | J4: Diferencia
B5: Baño/Ducha | C5: Bañera, hierro fundido, 152,4 cm, estándar | D5: 1 | E5: 250.00 € | F5: =RANDBETWEEN(E5+2,E5+20) -> 256.00 € | G5: =IFERROR(Costes[[#This Row],[Estimado]]-Costes[[#This Row],[Real]], "") -> 6.00 € | H5: =IFERROR(Costes[[#This Row],[Cantidad]]*Costes[[#This Row],[Estimado]], "") -> 250.00 € | I5: =IFERROR(Costes[[#This Row],[Cantidad]]*Costes[[#This Row],[Real]], "") -> 256.00 € | J5: =IFERROR(Costes[[#This Row],[Estimado ]]-Costes[[#This Row],[Real ]], "") -> 6.00 €
B6: Baño/Ducha | C6: Puertas de ducha, con bisagras, estándar | D6: 1 | E6: 200.00 € | F6: 210.00 € | G6: =IFERROR(Costes[[#This Row],[Estimado]]-Costes[[#This Row],[Real]], "") -> 10.00 € | H6: =IFERROR(Costes[[#This Row],[Cantidad]]*Costes[[#This Row],[Estimado]], "") -> 200.00 € | I6: =IFERROR(Costes[[#This Row],[Cantidad]]*Costes[[#This Row],[Real]], "") -> 210.00 € | J6: =IFERROR(Costes[[#This Row],[Estimado ]]-Costes[[#This Row],[Real ]], "") -> 10.00 €
B7: Baño/Ducha | C7: Alcachofa de ducha, estándar | D7: 1 | E7: 50.00 € | F7: 63.00 € | G7: =IFERROR(Costes[[#This Row],[Estimado]]-Costes[[#This Row],[Real]], "") -> 13.00 € | H7: =IFERROR(Costes[[#This Row],[Cantidad]]*Costes[[#This Row],[Estimado]], "") -> 50.00 € | I7: =IFERROR(Costes[[#This Row],[Cantidad]]*Costes[[#This Row],[Real]], "") -> 63.00 € | J7: =IFERROR(Costes[[#This Row],[Estimado ]]-Costes[[#This Row],[Real ]], "") -> 13.00 €
B8: Baño/Ducha | C8: Recubrimiento de la pared de la bañera, estándar | D8: 1 | E8: 200.00 € | F8: 211.00 € | G8: =IFERROR(Costes[[#This Row],[Estimado]]-Costes[[#This Row],[Real]], "") -> 11.00 € | H8: =IFERROR(Costes[[#This Row],[Cantidad]]*Costes[[#This Row],[Estimado]], "") -> 200.00 € | I8: =IFERROR(Costes[[#This Row],[Cantidad]]*Costes[[#This Row],[Real]], "") -> 211.00 € | J8: =IFERROR(Costes[[#This Row],[Estimado ]]-Costes[[#This Row],[Real ]], "") -> 11.00 €
B9: Armarios | C9: Botiquín de 60,96 cm, de lujo | D9: 1 | E9: 200.00 € | F9: 215.00 € | G9: =IFERROR(Costes[[#This Row],[Estimado]]-Costes[[#This Row],[Real]], "") -> 15.00 € | H9: =IFERROR(Costes[[#This Row],[Cantidad]]*Costes[[#This Row],[Estimado]], "") -> 200.00 € | I9: =IFERROR(Costes[[#This Row],[Cantidad]]*Costes[[#This Row],[Real]], "") -> 215.00 € | J9: =IFERROR(Costes[[#This Row],[Estimado ]]-Costes[[#This Row],[Real ]], "") -> 15.00 €
B10: Armarios | C10: Lavabo modular de 76,20 cm, estándar | D10: 2 | E10: 100.00 € | F10: 119.00 € | G10: =IFERROR(Costes[[#This Row],[Estimado]]-Costes[[#This Row],[Real]], "") -> 19.00 € | H10: =IFERROR(Costes[[#This Row],[Cantidad]]*Costes[[#This Row],[Estimado]], "") -> 200.00 € | I10: =IFERROR(Costes[[#This Row],[Cantidad]]*Costes[[#This Row],[Real]], "") -> 238.00 € | J10: =IFERROR(Costes[[#This Row],[Estimado ]]-Costes[[#This Row],[Real ]], "") -> 38.00 €
B11: Encimeras | C11: Azulejo cerámico, de lujo (cantidad en metros lineales) | D11: 5 | E11: 22.50 € | F11: 26.00 € | G11: =IFERROR(Costes[[#This Row],[Estimado]]-Costes[[#This Row],[Real]], "") -> 3.50 € | H11: =IFERROR(Costes[[#This Row],[Cantidad]]*Costes[[#This Row],[Estimado]], "") -> 112.50 € | I11: =IFERROR(Costes[[#This Row],[Cantidad]]*Costes[[#This Row],[Real]], "") -> 130.00 € | J11: =IFERROR(Costes[[#This Row],[Estimado ]]-Costes[[#This Row],[Real ]], "") -> 17.50 €
B12: Grifería | C12: Grifo, bañera, estándar | D12: 1 | E12: 90.00 € | F12: 107.00 € | G12: =IFERROR(Costes[[#This Row],[Estimado]]-Costes[[#This Row],[Real]], "") -> 17.00 € | H12: =IFERROR(Costes[[#This Row],[Cantidad]]*Costes[[#This Row],[Estimado]], "") -> 90.00 € | I12: =IFERROR(Costes[[#This Row],[Cantidad]]*Costes[[#This Row],[Real]], "") -> 107.00 € | J12: =IFERROR(Costes[[#This Row],[Estimado ]]-Costes[[#This Row],[Real ]], "") -> 17.00 €
B13: Grifería | C13: Grifo, ducha, un solo mando, estándar | D13: 1 | E13: 115.00 € | F13: 122.00 € | G13: =IFERROR(Costes[[#This Row],[Estimado]]-Costes[[#This Row],[Real]], "") -> 7.00 € | H13: =IFERROR(Costes[[#This Row],[Cantidad]]*Costes[[#This Row],[Estimado]], "") -> 115.00 € | I13: =IFERROR(Costes[[#This Row],[Cantidad]]*Costes[[#This Row],[Real]], "") -> 122.00 € | J13: =IFERROR(Costes[[#This Row],[Estimado ]]-Costes[[#This Row],[Real ]], "") -> 7.00 €
B14: Grifería | C14: Grifo de lavabo, estándar | D14: 1 | E14: 95.00 € | F14: 98.00 € | G14: =IFERROR(Costes[[#This Row],[Estimado]]-Costes[[#This Row],[Real]], "") -> 3.00 € | H14: =IFERROR(Costes[[#This Row],[Cantidad]]*Costes[[#This Row],[Estimado]], "") -> 95.00 € | I14: =IFERROR(Costes[[#This Row],[Cantidad]]*Costes[[#This Row],[Real]], "") -> 98.00 € | J14: =IFERROR(Costes[[#This Row],[Estimado ]]-Costes[[#This Row],[Real ]], "") -> 3.00 €
B15: Suelo | C15: Azulejo cerámico, estándar (cantidad en metros cuadrados). | D15: 35 | E15: 12.00 € | F15: 20.00 € | G15: =IFERROR(Costes[[#This Row],[Estimado]]-Costes[[#This Row],[Real]], "") -> 8.00 € | H15: =IFERROR(Costes[[#This Row],[Cantidad]]*Costes[[#This Row],[Estimado]], "") -> 420.00 € | I15: =IFERROR(Costes[[#This Row],[Cantidad]]*Costes[[#This Row],[Real]], "") -> 700.00 € | J15: =IFERROR(Costes[[#This Row],[Estimado ]]-Costes[[#This Row],[Real ]], "") -> 280.00 €
B16: Accesorios | C16: Toallero, estándar | D16: 2 | E16: 15.00 € | F16: 21.00 € | G16: =IFERROR(Costes[[#This Row],[Estimado]]-Costes[[#This Row],[Real]], "") -> 6.00 € | H16: =IFERROR(Costes[[#This Row],[Cantidad]]*Costes[[#This Row],[Estimado]], "") -> 30.00 € | I16: =IFERROR(Costes[[#This Row],[Cantidad]]*Costes[[#This Row],[Real]], "") -> 42.00 € | J16: =IFERROR(Costes[[#This Row],[Estimado ]]-Costes[[#This Row],[Real ]], "") -> 12.00 €
B17: Accesorios | C17: Portarrollos | D17: 1 | E17: 10.00 € | F17: 26.00 € | G17: =IFERROR(Costes[[#This Row],[Estimado]]-Costes[[#This Row],[Real]], "") -> 16.00 € | H17: =IFERROR(Costes[[#This Row],[Cantidad]]*Costes[[#This Row],[Estimado]], "") -> 10.00 € | I17: =IFERROR(Costes[[#This Row],[Cantidad]]*Costes[[#This Row],[Real]], "") -> 26.00 € | J17: =IFERROR(Costes[[#This Row],[Estimado ]]-Costes[[#This Row],[Real ]], "") -> 16.00 €
B18: Iluminación | C18: Luces encastrables, estándar | D18: 4 | E18: 25.00 € | F18: 41.00 € | G18: =IFERROR(Costes[[#This Row],[Estimado]]-Costes[[#This Row],[Real]], "") -> 16.00 € | H18: =IFERROR(Costes[[#This Row],[Cantidad]]*Costes[[#This Row],[Estimado]], "") -> 100.00 € | I18: =IFERROR(Costes[[#This Row],[Cantidad]]*Costes[[#This Row],[Real]], "") -> 164.00 € | J18: =IFERROR(Costes[[#This Row],[Estimado ]]-Costes[[#This Row],[Real ]], "") -> 64.00 €
B19: Fregaderos | C19: Inodoro, estándar | D19: 2 | E19: 60.00 € | F19: 76.00 € | G19: =IFERROR(Costes[[#This Row],[Estimado]]-Costes[[#This Row],[Real]], "") -> 16.00 € | H19: =IFERROR(Costes[[#This Row],[Cantidad]]*Costes[[#This Row],[Estimado]], "") -> 120.00 € | I19: =IFERROR(Costes[[#This Row],[Cantidad]]*Costes[[#This Row],[Real]], "") -> 152.00 € | J19: =IFERROR(Costes[[#This Row],[Estimado ]]-Costes[[#This Row],[Real ]], "") -> 32.00 €
B20: Otros | D20: 1 | E20: 20.00 € | F20: 23.00 € | G20: =IFERROR(Costes[[#This Row],[Estimado]]-Costes[[#This Row],[Real]], "") -> 3.00 € | H20: =IFERROR(Costes[[#This Row],[Cantidad]]*Costes[[#This Row],[Estimado]], "") -> 20.00 € | I20: =IFERROR(Costes[[#This Row],[Cantidad]]*Costes[[#This Row],[Real]], "") -> 23.00 € | J20: =IFERROR(Costes[[#This Row],[Estimado ]]-Costes[[#This Row],[Real ]], "") -> 3.00 €
B21: Subtotal | E21: =SUBTOTAL(109,Costes[Estimado]) -> 1,464.50 € | F21: =SUBTOTAL(109,Costes[Real]) -> 1,634.00 € | G21: =SUBTOTAL(109,Costes[Diferencia]) -> 169.50 € | H21: =SUBTOTAL(109,Costes[[Estimado ]]) -> 2,212.50 € | I21: =SUBTOTAL(109,Costes[[Real ]]) -> 2,757.00 € | J21: =SUBTOTAL(109,Costes[[Diferencia ]]) -> 544.50 €
B23: Costes inesperados (agregar una estimación del 30 %) | E23: =IFERROR(Costes[[#Totals],[Estimado]]*0.3, "") -> 439.35 € | H23: =IFERROR(Costes[[#Totals],[Estimado ]]*0.3, "") -> 663.75 €
B24: Costes totales | E24: =IFERROR(SUM(E21:E21), "") -> 1,464.50 € | H24: =IFERROR(SUM(Costes[[#Totals],[Estimado ]],Excedente), "") -> 2,876.25 €
